bitfinex/quotes_ETHUSD_20250925
["timestamp","ask_amount","ask_price","bid_price","bid_amount"]
[1758787875420,42.02853234,4037.0,4036.9,0.002]
[1758787875577,8.46760675,4037.0,4036.9,0.002]
[1758787875978,3.38860675,4037.0,4036.9,0.002]
[1758787876211,7.67460675,4037.0,4036.9,0.002]
[1758787877596,48.79161928,4037.0,4036.9,0.002]
[1758787881297,4.18060675,4037.0,4036.9,0.002]
[1758787881499,10.93969369,4037.0,4036.9,0.002]
[1758787882938,0.38860675,4037.0,4036.9,0.002]
[1758787883099,0.38860675,4037.0,4036.9,3.1862483]
[1758787884500,4.279,4037.9,4037.3,2.47684445]
[1758787884740,4.279,4037.9,4037.4,0.2351]
[1758787884902,39.26952559,4038.4,4037.5,3.18387023]
[1758787885102,4.28,4038.3,4037.6,0.2351]
[1758787885304,3.38850631,4038.2,4037.6,2.71181172]
[1758787885498,3.38850631,4038.2,4037.6,2.71180425]
[1758787885738,0.38850631,4038.2,4037.6,2.71180425]
[1758787885956,37.20432559,4037.9,4037.7,14.5]
[1758787886242,6.93700652,4037.8,4037.7,14.5]
[1758787886400,6.91219616,4037.8,4037.7,14.5]
[1758787886608,6.71789616,4037.8,4037.7,14.5]
[1758787886804,6.91219616,4037.8,4037.7,14.5]
[1758787887107,6.71789616,4037.8,4037.7,14.5]
[1758787887307,6.71789616,4037.8,4037.0,0.2351]
[1758787887308,0.792,4037.5,4037.0,0.2351]
[1758787887608,3.02481036,4037.4,4037.0,0.2351]
[1758787887836,6.26898901,4037.2,4037.1,14.5]
[1758787888698,3.792,4037.2,4037.1,14.5]
[1758787888919,6.29377459,4037.2,4037.1,14.5]
[1758787889121,6.26816423,4037.2,4037.1,14.5]
[1758787889342,3.7912,4037.2,4036.9,0.002]
[1758787889507,7.54704238,4037.1,4036.9,0.002]
[1758787889702,0.02481036,4037.0,4036.9,0.002]
[1758787891000,5.09181036,4037.0,4036.9,0.002]
[1758787891204,8.067,4037.0,4036.9,0.002]
[1758787891884,48.19771253,4037.0,4036.9,0.002]
[1758787892028,48.39201253,4037.0,4036.9,0.002]
[1758787892464,45.72062559,4037.0,4036.9,0.002]
[1758787892772,8.067,4037.0,4036.9,0.002]
[1758787893271,47.74841253,4037.0,4036.9,0.002]
[1758787893656,48.39201253,4037.0,4036.9,0.002]
[1758787893967,45.27132559,4037.0,4036.9,0.002]
[1758787894275,8.067,4037.0,4036.9,0.002]
[1758787895566,8.066,4037.0,4036.9,0.2371]
[1758787895742,8.066,4037.0,4036.9,0.002]
[1758787895943,10.54308694,4037.0,4036.9,0.002]
[1758787896270,11.18668694,4037.0,4036.9,0.002]
[1758787896777,8.066,4037.0,4036.9,0.002]
[1758787897351,10.54308694,4037.0,4036.9,0.002]
[1758787897550,11.18668694,4037.0,4036.9,0.002]
[1758787897748,8.5153,4037.0,4036.9,0.002]
[1758787897951,8.066,4037.0,4036.9,0.002]
[1758787898275,10.54308694,4037.0,4036.9,0.002]
[1758787898994,3.0,4037.0,4036.9,0.7091]
[1758787899447,3.0,4037.0,4036.9,0.002]
[1758787899448,11.2094973,4037.0,4036.9,0.002]
[1758787899783,8.064,4037.0,4036.9,0.002]
[1758787900286,10.54108694,4037.0,4036.9,0.002]
[1758787900462,11.18468694,4037.0,4036.9,0.002]
[1758787904891,48.38901253,4037.0,4036.9,0.002]
[1758787908760,44.11701253,4037.0,4036.9,0.002]
[1758787908960,50.44501253,4037.0,4036.9,0.002]
[1758787910857,50.25071253,4037.0,4036.9,0.002]
[1758787911290,50.44501253,4037.0,4036.9,0.002]
[1758787913401,50.25071253,4037.0,4036.9,0.002]
[1758787914182,50.44501253,4037.0,4036.9,0.002]
[1758787914700,50.44421253,4037.0,4036.9,0.002]
[1758787915304,50.24991253,4037.0,4036.9,0.002]
[1758787915506,49.80061253,4037.0,4036.9,0.002]
[1758787915665,50.24231253,4037.0,4036.9,0.002]
[1758787915866,50.43661253,4037.0,4036.9,0.002]
[1758787918077,49.80061253,4037.0,4036.9,0.002]
[1758787918475,50.24231253,4037.0,4036.9,0.002]
[1758787921004,50.43661253,4037.0,4036.9,0.002]
[1758787921622,50.24231253,4037.0,4036.9,0.002]
[1758787921798,50.43661253,4037.0,4036.9,0.002]
[1758787923386,49.80061253,4037.0,4036.9,0.002]
[1758787925219,43.47261253,4037.0,4036.9,0.002]
[1758787925523,8.80508694,4037.0,4036.9,0.6885]
[1758787925889,2.47797976,4037.2,4036.9,0.6885]
[1758787925890,0.001,4037.2,4036.9,0.6885]
[1758787926090,4.263,4037.1,4037.0,0.6865]
[1758787926706,0.001,4037.2,4037.0,0.6865]
[1758787926900,4.263,4037.1,4036.9,0.002]
[1758787927100,0.792,4037.0,4036.9,0.002]
[1758787927411,0.001,4037.2,4037.0,0.6865]
[1758787927611,0.001,4037.2,4037.1,3.16352558]
[1758787927989,0.001,4037.2,4037.1,17.66352558]
[1758787928203,0.001,4037.2,4037.1,15.1865]
[1758787929228,10.53296423,4037.2,4037.1,14.5]
[1758787929431,6.26908694,4037.0,4036.9,0.002]
[1758787929603,47.73641253,4037.0,4036.9,0.002]
[1758787930116,48.36831253,4037.0,4036.9,0.002]
[1758787930509,48.17401253,4037.0,4036.9,0.002]
[1758787930707,49.80041253,4037.0,4036.9,0.002]
[1758787931316,50.43421253,4037.0,4036.9,0.002]
[1758787932334,49.80041253,4037.0,4036.9,0.002]
[1758787934709,41.66563515,4037.0,4036.9,0.002]
[1758787935028,44.36443515,4037.0,4036.9,0.002]
[1758787935232,43.73063515,4037.0,4036.9,0.002]
[1758787935604,43.73225973,4037.0,4036.9,0.002]
[1758787936236,44.36605973,4037.0,4036.9,0.002]
[1758787936851,43.73225973,4037.0,4036.9,0.002]
[1758787937049,6.26908694,4037.0,4036.9,0.2386]
[1758787937348,6.73908694,4037.0,4036.9,0.6968]
[1758787937551,9.73908694,4037.0,4036.9,0.6968]
[1758787938239,10.53108694,4037.0,4036.9,0.6968]
[1758787938438,8.054,4037.0,4036.9,0.6968]
[1758787938617,9.73908694,4037.0,4036.9,0.6968]
[1758787938815,0.001,4037.2,4036.9,0.6968]
[1758787939063,0.001,4037.2,4037.0,0.71957086]
[1758787939354,0.001,4037.2,4037.1,2.79690101]
[1758787939546,0.001,4037.2,4037.1,17.99170101]
[1758787939928,0.0002,4037.2,4037.1,17.99170101]
[1758787940559,0.0002,4037.2,4037.1,15.51467543]
[1758787941250,0.0002,4037.2,4037.1,17.99170101]
[1758787942628,0.0002,4037.2,4037.1,22.25270101]
[1758787943038,0.0002,4037.2,4037.1,22.37590101]
[1758787944831,0.0002,4037.2,4037.1,18.11490101]
[1758787945033,0.0002,4037.2,4037.1,24.44090101]
[1758787945656,0.0002,4037.2,4037.1,18.11490101]
[1758787946167,0.0002,4037.2,4037.1,22.37490101]
[1758787946340,0.0002,4037.2,4037.1,24.43990101]
[1758787949471,0.0002,4037.2,4037.1,24.45990101]
[1758787950756,0.0002,4037.2,4037.1,27.45990101]
[1758787951355,0.0002,4037.2,4037.1,28.25190101]
[1758787953033,0.0002,4037.2,4037.1,28.35120008]
[1758787953647,0.0002,4037.2,4037.1,26.28520008]
[1758787953851,0.0002,4037.2,4037.1,28.34920008]
[1758787956273,0.0002,4037.2,4037.1,22.02620008]
[1758787956460,0.0002,4037.2,4037.1,28.34820008]
[1758787956658,0.0002,4037.2,4037.1,24.55620008]
[1758787960148,0.0002,4037.2,4037.1,18.23420008]
[1758787960354,0.0002,4037.2,4037.1,24.55520008]
[1758787960670,0.0002,4037.2,4037.1,18.23420008]
[1758787960857,0.0002,4037.2,4037.1,24.55520008]
[1758787961057,0.0002,4037.2,4037.1,18.23420008]
[1758787961372,0.0002,4037.2,4037.1,24.08390008]
[1758787961554,0.0002,4037.2,4037.1,24.55800008]
[1758787961741,0.0002,4037.2,4037.1,24.45870101]
[1758787962067,0.0002,4037.2,4037.1,23.74110101]
[1758787962436,0.0002,4037.2,4037.1,24.45870101]
[1758787965573,0.001,4037.7,4037.6,2.47671884]
[1758787965574,0.0004,4037.7,4037.6,2.47671884]
[1758787965873,0.0004,4037.7,4037.6,6.75748602]
[1758787966180,0.0004,4037.7,4037.6,22.87374689]
[1758787966367,0.0004,4037.7,4037.6,22.99694689]
[1758787968086,0.0004,4037.7,4037.6,22.27934689]
[1758787968482,0.0004,4037.7,4037.6,18.74094689]
[1758787968684,0.0004,4037.7,4037.6,24.34334689]
[1758787969187,0.0004,4037.7,4037.6,25.06094689]
[1758787969384,0.0004,4037.7,4037.6,24.58684689]
[1758787969575,0.0004,4037.7,4037.6,24.58884689]
[1758787971582,0.0004,4037.7,4037.6,18.26884689]
[1758787971784,0.0004,4037.7,4037.6,24.34434689]
[1758787971979,0.0004,4037.7,4037.6,18.02534689]
[1758787972182,0.0004,4037.7,4037.6,24.34434689]
[1758787973484,0.0004,4037.7,4037.6,18.02534689]
[1758787973809,0.0004,4037.7,4037.6,25.06194689]
[1758787974921,0.0004,4037.7,4037.6,24.58784689]
[1758787975605,0.0004,4037.7,4037.6,20.08934689]
[1758787975771,0.0004,4037.7,4037.6,24.34334689]
[1758787976409,0.0004,4037.7,4037.6,18.02534689]
[1758787976608,0.0004,4037.7,4037.6,24.34334689]
[1758787977105,0.0004,4037.7,4037.6,18.02534689]
[1758787977307,0.0004,4037.7,4037.6,24.58684689]
[1758787977681,0.0004,4037.7,4037.6,24.34334689]
[1758787978315,0.0004,4037.7,4037.6,24.58684689]
[1758787978500,0.0004,4037.7,4037.6,24.34334689]
[1758787978686,0.0004,4037.7,4037.6,25.06094689]
[1758787980418,0.0004,4037.7,4037.6,18.74294689]
[1758787980613,0.0004,4037.7,4037.6,25.06094689]
[1758787981613,1e-08,4038.4,4038.3,2.47628952]
[1758787981814,1e-08,4038.4,4038.3,6.74928952]
[1758787982008,1e-08,4038.4,4038.3,7.58038952]
[1758787982203,1e-08,4038.4,4038.3,22.08038952]
[1758787982421,1e-08,4038.4,4038.3,24.14438952]
[1758787982716,1e-08,4038.4,4038.3,26.07557567]
[1758787982884,1e-08,4038.4,4038.3,26.53567567]
[1758787983286,1e-08,4038.4,4038.3,26.41247567]
[1758787983481,1e-08,4038.4,4038.3,26.53567567]
[1758787986214,1e-08,4038.4,4038.3,26.51567567]
[1758787987018,1e-08,4038.4,4038.3,19.49077567]
[1758787987223,1e-08,4038.4,4038.3,25.80677567]
[1758787987625,1e-08,4038.4,4038.3,26.51467567]
[1758787988708,0.1943,4039.7,4039.6,2.47549262]
[1758787988913,0.1943,4039.7,4039.6,6.72749262]
[1758787989346,0.6467,4039.7,4039.6,2.47549262]
[1758787989654,0.6467,4039.7,4039.6,4.252]
[1758787990765,0.6459,4039.7,4039.6,6.72749262]
[1758787991506,0.4412,4039.7,4039.6,6.72748589]
[1758787992815,0.6347,4039.7,4039.6,6.72748589]
[1758787993007,0.6347,4039.7,4039.6,6.72648589]
[1758787994011,0.6347,4039.7,4039.6,6.72649262]
[1758787996027,0.02,4039.9,4039.8,2.47537006]
[1758787996211,0.02,4039.9,4039.8,6.72537006]
[1758787996718,0.6547,4039.9,4039.8,6.72537006]
[1758787997135,0.6547,4039.9,4039.8,4.25]
[1758787998149,0.6547,4039.9,4039.8,6.72537006]
[1758787998338,0.6547,4039.9,4039.8,4.25]
[1758788001847,0.6547,4039.9,4039.8,4.249]
[1758788002164,6.15481915,4039.9,4039.8,4.249]
[1758788002361,6.13000879,4039.9,4039.8,4.249]
[1758788002679,3.6547,4039.9,4038.7,0.1232]
[1758788002968,12.28030023,4039.2,4038.9,2.47591297]
[1758788003127,12.28030023,4039.2,4038.8,4.248]
[1758788003128,12.28030023,4039.2,4039.0,6.72384601]
[1758788003324,12.28030023,4039.2,4039.1,14.5]
[1758788003979,12.28030023,4039.2,4039.1,18.748]
[1758788005478,12.28030023,4039.2,4039.1,14.5]
[1758788005633,12.28030023,4039.2,4039.1,18.748]
[1758788005828,12.28030023,4039.2,4039.1,21.22379906]
[1758788006335,0.3883581,4039.4,4039.1,18.748]
[1758788006529,0.3883581,4039.4,4039.1,18.991]
[1758788006766,0.3883581,4039.4,4039.1,18.748]
[1758788006962,12.28030023,4039.3,4039.1,18.748]
[1758788007437,12.28030023,4039.3,4039.2,2.47573776]
[1758788008192,12.28030023,4039.3,4039.1,18.75]
[1758788008393,12.28030023,4039.3,4039.2,2.47573776]
[1758788009004,12.28030023,4039.3,4039.1,21.22578338]
[1758788009173,12.28030023,4039.3,4039.1,18.75]
[1758788009706,12.28030023,4039.3,4039.1,21.22579208]
[1758788010469,12.28030023,4039.3,4039.1,16.97779208]
[1758788010977,12.28030023,4039.3,4039.2,4.247]
[1758788012504,12.28030023,4039.3,4039.2,6.72273776]
[1758788012707,12.28030023,4039.3,4039.2,4.247]
[1758788012886,12.28030023,4039.3,4039.2,6.72273776]
[1758788013081,12.28030023,4039.3,4039.2,2.47573776]
[1758788013288,12.28030023,4039.3,4039.2,6.72273776]
[1758788013511,12.28030023,4039.3,4039.2,4.247]
[1758788014088,12.28030023,4039.3,4039.2,6.72273776]
[1758788015383,12.28030023,4039.3,4039.2,4.247]
[1758788015579,0.3883581,4039.4,4039.3,2.47567647]
[1758788016314,0.3875581,4039.4,4039.3,2.47567647]
[1758788016719,0.3875581,4039.4,4039.3,2.50043323]
[1758788017219,0.3875581,4039.4,4039.3,2.47567647]
[1758788017415,0.3875581,4039.4,4039.2,6.72273364]
[1758788017620,12.28030023,4039.3,4039.2,4.247]
[1758788018191,12.28030023,4039.3,4039.2,6.72273776]
[1758788018720,12.28030023,4039.3,4039.1,14.502]
[1758788018886,6.13524812,4039.2,4039.1,14.502]
[1758788019083,10.35543776,4039.2,4039.1,14.502]
[1758788021531,7.8797,4039.2,4039.1,14.502]
[1758788021829,10.35543776,4039.2,4039.1,14.502]
[1758788022187,10.35543776,4039.2,4039.1,0.002]
[1758788022489,23.42773799,4039.2,4039.1,0.002]
[1758788029178,3.26773776,4039.2,4039.1,0.002]
[1758788029368,24.85603799,4039.2,4039.1,0.002]
[1758788029769,25.29023799,4039.2,4039.1,0.002]
[1758788030096,25.48373799,4039.2,4039.1,0.002]
[1758788030596,24.85603799,4039.2,4039.1,0.002]
[1758788031465,25.29023799,4039.2,4039.1,0.002]
[1758788031858,16.07230023,4039.2,4039.1,0.002]
[1758788032062,22.79103799,4039.2,4039.1,0.2386]
[1758788032258,22.79103799,4039.2,4039.1,0.002]
[1758788034196,20.31530023,4039.2,4039.1,0.002]
[1758788034784,0.3875581,4039.4,4039.1,0.002]
[1758788034984,13.07230023,4039.3,4039.1,0.7115]
[1758788035191,15.28030023,4039.3,4039.2,0.7095]
[1758788035377,12.28030023,4039.3,4039.2,0.7095]
[1758788036018,0.3875581,4039.4,4039.2,0.7095]
[1758788036296,0.3875581,4039.4,4039.3,3.18517647]
[1758788036477,0.3875581,4039.4,4039.3,17.68517647]
[1758788036878,0.001,4039.7,4039.6,2.47549262]
[1758788037089,0.001,4039.7,4039.6,6.71749262]
[1758788037293,0.001,4039.7,4039.6,3.18499262]
[1758788037468,0.001,4039.7,4039.6,7.42699262]
[1758788037668,0.001,4039.7,4039.6,8.4741064]
[1758788041627,0.0002,4039.7,4039.6,8.4741064]
[1758788042030,0.0002,4039.7,4039.6,1.04711378]
[1758788042236,0.0002,4039.7,4039.6,4.241]
[1758788042529,0.0002,4039.7,4039.6,7.41299262]
[1758788042911,0.0002,4039.7,4039.6,7.41199262]
[1758788043749,0.0002,4039.7,4039.6,0.6965]
[1758788044032,0.0002,4039.7,4039.6,4.9365]
[1758788044630,0.0002,4039.7,4039.6,7.41199262]
[1758788045354,0.0002,4039.7,4039.6,9.60014823]
[1758788045532,12.28050023,4039.7,4039.6,9.60014823]
[1758788045700,12.28050023,4039.7,4039.6,5.36014823]
[1758788046027,12.28050023,4039.7,4039.6,2.88465561]
[1758788046228,3.0,4039.6,4039.3,14.5]
[1758788046404,0.02481036,4039.6,4039.5,4.239]
[1758788046604,0.02501036,4039.7,4039.5,4.239]
[1758788046929,3.94348236,4039.7,4039.4,4.239]
[1758788047131,3.29248236,4039.7,4039.4,4.239]
[1758788047293,3.29248236,4039.7,4039.3,14.5]
[1758788047617,3.29248236,4039.7,4039.4,4.239]
[1758788048123,3.29248236,4039.7,4039.4,4.4764]
[1758788048499,3.267672,4039.7,4039.4,4.239]
[1758788048729,15.28030023,4039.5,4039.4,4.239]
[1758788049331,15.28030023,4039.5,4039.4,4.4764]
[1758788050109,15.28030023,4039.5,4039.4,7.41111519]
[1758788050509,3.0,4039.5,4039.4,4.9355]
[1758788050717,0.0002,4039.7,4039.5,2.4755539]
[1758788051019,12.28050023,4039.7,4039.6,4.9365]
[1758788051209,12.28050023,4039.7,4039.6,7.41199262]
[1758788051612,12.28050023,4039.7,4039.6,6.94429262]
[1758788052519,12.28050023,4039.7,4039.6,6.71349262]
[1758788052726,12.28050023,4039.7,4039.6,6.94429262]
[1758788053636,12.28050023,4039.7,4039.6,7.41199262]
[1758788054207,12.28050023,4039.7,4039.6,21.91199262]
[1758788055421,12.28050023,4039.7,4039.6,21.21349262]
[1758788056557,0.0002,4039.7,4039.6,21.91199262]
[1758788058241,0.0002,4039.7,4039.6,21.44429262]
[1758788058669,0.0002,4039.7,4039.6,21.91199262]
[1758788059947,0.0002,4039.7,4039.6,21.44429262]
[1758788060149,14.3704845,4039.7,4039.6,21.21349262]
[1758788060683,14.3704845,4039.7,4039.6,21.21149262]
[1758788061957,14.3704845,4039.7,4039.6,21.90999262]
[1758788062574,0.0002,4039.7,4039.6,22.18112347]
[1758788064778,14.3704845,4039.7,4039.6,18.734]
[1758788065168,14.3704845,4039.7,4039.6,21.20949262]
[1758788065347,14.3704845,4039.7,4039.6,21.44029262]
[1758788065549,14.0027018,4039.7,4039.6,21.44029262]
[1758788065750,14.0027018,4039.7,4039.6,14.5]
[1758788065981,17.6561018,4039.7,4039.6,18.734]
[1758788066362,3.0,4039.7,4039.6,18.734]
[1758788066682,3.0,4039.7,4039.6,18.736]
[1758788066884,3.001,4039.7,4039.6,18.736]
[1758788067090,3.0002,4039.7,4039.6,18.736]
[1758788067454,3.02501036,4039.7,4039.6,18.736]
[1758788069267,3.0002,4039.7,4039.6,18.736]
[1758788069481,3.0002,4039.7,4039.6,21.21149262]
[1758788069670,3.0002,4039.7,4039.6,21.44229262]
[1758788070494,3.0002,4039.7,4039.6,21.90999262]
[1758788071590,3.0002,4039.7,4039.6,18.9668]
[1758788072001,3.0002,4039.7,4039.6,14.502]
[1758788072295,3.0002,4039.7,4039.6,18.735]
[1758788073659,3.0002,4039.7,4039.6,21.21049262]
[1758788073860,3.0002,4039.7,4039.6,21.44129262]
[1758788074390,3.0002,4039.7,4039.6,18.9658]
[1758788074991,3.0002,4039.7,4039.6,18.735]
[1758788075976,3.0002,4039.7,4039.6,21.44129262]
[1758788076177,3.0002,4039.7,4039.6,19.4335]
[1758788076361,3.0002,4039.7,4039.6,18.9658]
[1758788076562,3.0002,4039.7,4039.6,21.44129262]
[1758788076991,3.0002,4039.7,4039.6,21.90899262]
[1758788077293,3.0002,4039.7,4039.6,19.4335]
[1758788077694,3.02501036,4039.7,4039.6,14.502]
[1758788077897,3.0002,4039.7,4039.6,18.733]
[1758788079178,0.38832952,4039.8,4039.6,21.90699262]
[1758788079383,0.38832952,4039.8,4039.7,3.17393134]
[1758788079583,0.38832952,4039.8,4039.7,5.26168565]
[1758788079909,0.38832952,4039.8,4039.7,19.73693134]
[1758788080113,0.38832952,4039.8,4039.7,22.12821749]
[1758788080786,0.021,4039.9,4039.8,2.47537006]
[1758788080981,0.021,4039.9,4039.8,7.38767006]
[1758788081716,0.021,4039.9,4039.8,21.88767006]
[1758788082813,0.02,4040.9,4040.4,2.47500247]
[1758788083019,0.02,4040.9,4040.4,7.88131082]
[1758788083184,14.3702845,4040.8,4040.4,0.49500835]
[1758788083382,14.3702845,4040.8,4040.4,16.97500247]
[1758788083578,14.3702845,4040.8,4040.4,21.44150247]
[1758788084026,14.3702845,4040.8,4040.4,21.88630247]
[1758788085095,14.3702845,4040.8,4040.4,21.44150247]
[1758788085284,25.001,4040.5,4040.4,21.44150247]
[1758788086179,25.001,4040.5,4040.4,21.88630247]
[1758788086382,25.001,4040.5,4040.4,24.27758862]
[1758788089700,25.001,4040.5,4040.4,23.83278862]
[1758788090010,25.001,4040.5,4040.4,25.65728862]
[1758788091000,25.001,4040.5,4040.4,25.89278862]
[1758788091221,25.001,4040.5,4040.4,26.33758862]
[1758788092330,25.001,4040.5,4040.4,25.65628862]
[1758788092629,25.001,4040.5,4040.4,26.33758862]
[1758788092630,25.0002,4040.5,4040.4,26.33758862]
[1758788094243,25.0002,4040.5,4040.4,25.65628862]
[1758788094450,25.0002,4040.5,4040.4,23.59228862]
[1758788094594,25.0002,4040.5,4040.4,16.97500247]
[1758788094803,25.4306,4040.5,4040.4,21.20100247]
[1758788095143,25.4306,4040.5,4040.4,18.726]
[1758788095144,25.0002,4040.5,4040.4,18.726]
[1758788095632,25.0002,4040.5,4040.4,21.20100247]
[1758788096431,25.4306,4040.5,4040.4,21.20100247]
[1758788097401,25.4306,4040.5,4040.4,18.726]
[1758788097603,25.6251,4040.5,4040.4,14.5]
[1758788097801,25.6251,4040.5,4040.4,18.725]
[1758788098243,25.0002,4040.5,4040.4,18.725]
[1758788098756,25.0002,4040.5,4040.4,21.20000247]
[1758788102167,25.0002,4040.5,4040.4,21.90410247]
[1758788102373,25.0002,4040.5,4040.4,14.5]
[1758788102528,25.0002,4040.5,4040.4,18.724]
[1758788102724,26.01073016,4040.5,4040.4,21.19900247]
[1758788102927,25.38843016,4040.5,4040.4,21.19900247]
[1758788104250,25.38843016,4040.5,4040.4,16.97500247]
[1758788104463,25.38843016,4040.5,4040.4,21.19900247]
[1758788106249,32.27767138,4040.5,4040.4,14.5]
[1758788106448,3.26713302,4040.2,4039.9,0.002]
[1758788106651,18.1622845,4040.0,4039.9,0.002]
[1758788106961,24.86053202,4040.0,4039.9,0.002]
[1758788107161,25.48283202,4040.0,4039.9,0.002]
[1758788107333,25.87115677,4040.0,4039.9,0.002]
[1758788107833,4.18032475,4040.0,4039.9,0.002]
[1758788108031,25.87115677,4040.0,4039.9,0.002]
[1758788108457,2.4755539,4039.5,4039.1,0.002]
[1758788108658,24.8608384,4039.5,4039.1,0.002]
[1758788108951,24.8608384,4039.5,4038.6,0.002]
[1758788108952,2.47598296,4038.8,4038.6,0.002]
[1758788109152,10.51579332,4038.8,4038.6,0.002]
[1758788109366,11.11328296,4038.8,4038.6,0.002]
[1758788110431,11.50175487,4038.8,4038.6,0.002]
[1758788110658,4.80277191,4038.8,4038.6,0.002]
[1758788110869,3.38847191,4038.8,4038.6,0.002]
[1758788111083,3.38847191,4038.8,4038.6,2.47805769]
[1758788111259,3.38847191,4038.8,4038.7,0.2278]
[1758788111571,3.38847191,4038.8,4038.7,14.502]
[1758788111572,17.75875641,4038.8,4038.7,14.502]
[1758788111777,0.38847191,4038.8,4038.7,18.6179629]
[1758788112068,14.3702845,4038.8,4038.7,14.502]
[1758788112269,3.38840729,4039.0,4038.7,21.86804427]
[1758788112467,0.7448244,4040.3,4038.8,0.667]
[1758788112767,14.3702845,4040.2,4039.6,2.47545038]
[1758788112942,14.3702845,4040.2,4040.1,14.5]
[1758788113165,17.3702845,4040.2,4040.1,18.723]
[1758788113581,39.3704845,4040.5,4040.1,18.9488]
[1758788113794,39.3704845,4040.5,4040.1,4.4488]
[1758788114088,3.0,4040.4,4040.1,6.9239813]
[1758788114255,3.0,4040.4,4040.2,2.47512316]
[1758788114658,3.0,4040.4,4040.3,14.5]
[1758788114957,25.0002,4040.5,4040.4,2.47500247]
[1758788115153,28.0002,4040.5,4040.4,6.69800247]
[1758788115353,28.0002,4040.5,4040.4,4.223]
[1758788115659,28.38846175,4040.5,4040.4,4.223]
[1758788115885,3.0,4040.4,4040.3,14.5]
[1758788116159,3.72351036,4040.4,4040.3,14.5]
[1758788116590,8.7127,4040.4,4040.3,14.5]
[1758788116826,3.0,4040.4,4040.3,14.5]
[1758788116994,3.0,4040.4,4040.3,18.722]
[1758788117658,6.99051283,4040.4,4040.3,14.5]
[1758788117857,6.96570247,4040.4,4040.3,14.5]
[1758788118059,11.18690247,4040.4,4040.3,14.5]
[1758788120003,2.47527897,4040.0,4039.2,2.47569296]
[1758788120175,38.20362543,4039.9,4039.3,4.222]
[1758788120359,38.17881507,4039.9,4039.2,2.47569296]
[1758788120576,0.02481036,4039.8,4039.4,14.5]
[1758788120782,3.2436,4039.7,4039.4,18.722]
[1758788121082,0.02481036,4039.6,4039.4,18.722]
[1758788122314,3.2675539,4039.5,4039.4,14.5]
[1758788122515,6.5111539,4039.5,4039.4,14.5]
[1758788123017,4.0356,4039.5,4039.4,14.5]
[1758788123602,6.53596426,4039.5,4039.4,14.5]
[1758788123801,4.0356,4039.5,4039.4,14.5]
[1758788124007,6.53596426,4039.5,4039.4,14.5]
[1758788124209,40.14321507,4039.5,4039.4,14.5]
[1758788124515,1.0,4200.0,4040.4,2.47500247]
[1758788124516,0.02,4040.9,4040.4,2.47500247]
[1758788124725,0.02,4040.9,4040.8,2.59795747]
[1758788124893,0.02,4040.9,4040.8,6.91670504]
[1758788125099,1e-08,4040.9,4040.8,22.78293198]
[1758788128315,1e-08,4040.9,4040.8,23.5271651]
[1758788129823,1e-08,4040.9,4040.8,26.5271651]
[1758788130118,1e-08,4040.9,4040.8,26.3039651]
[1758788130318,1e-08,4040.9,4040.8,17.71899059]
[1758788130617,1e-08,4040.9,4040.8,19.53223312]
[1758788130821,1e-08,4040.9,4040.8,15.24423312]
[1758788130992,0.24360001,4040.9,4040.8,15.24423312]
[1758788131317,0.69870001,4040.9,4040.8,15.24423312]
[1758788131518,0.69870001,4040.9,4040.8,14.5]
[1758788131721,1e-08,4040.9,4040.8,14.5]
[1758788132098,0.24360001,4040.9,4040.8,14.5]
[1758788132295,1e-08,4040.9,4040.8,16.97475747]
[1758788132512,1e-08,4040.9,4040.8,14.5]
[1758788132988,1e-08,4040.9,4040.8,16.97475747]
[1758788133604,1e-08,4040.9,4040.8,14.5]
[1758788134622,1e-08,4040.9,4040.8,16.97475747]
[1758788136058,1e-08,4040.9,4040.8,21.25675747]
[1758788136385,1e-08,4040.9,4040.8,21.50128909]
[1758788136532,1e-08,4040.9,4040.8,21.25675747]
[1758788136732,0.24360001,4040.9,4040.8,18.782]
[1758788136961,0.24360001,4040.9,4040.8,21.25675747]
[1758788137742,0.24360001,4040.9,4040.8,16.97475747]
[1758788138186,1e-08,4042.5,4041.8,2.47414518]
[1758788138348,1e-08,4042.9,4042.8,2.47353319]
[1758788138677,1e-08,4042.9,4042.8,11.89026852]
[1758788138837,1e-08,4042.9,4042.8,26.58873319]
[1758788139173,0.02,4044.9,4043.8,2.4729215]
[1758788139378,0.02,4044.9,4043.8,7.32824341]
[1758788139701,0.02,4044.9,4043.8,7.5267142]
[1758788140052,0.02,4044.9,4043.8,22.0267142]
[1758788140503,37.16321507,4043.9,4043.8,14.5]
[1758788140649,43.33477542,4043.9,4043.8,14.5]
[1758788140988,0.792,4043.6,4042.7,4.363]
[1758788141193,0.02,4044.9,4042.8,0.02473533]
[1758788141496,2.47241997,4044.7,4043.3,0.1232]
[1758788141660,2.47241997,4044.7,4043.4,3.631]
[1758788141661,2.47250142,4044.5,4043.4,3.631]
[1758788141874,0.692,4044.4,4044.1,14.5]
[1758788142076,0.792,4044.6,4044.1,14.5]
[1758788142600,0.692,4044.5,4044.1,14.5]
[1758788142761,0.8404,4044.4,4044.1,14.5]
[1758788143132,0.692,4044.3,4044.1,14.5]
[1758788143389,0.2497,4044.2,4044.1,14.5]
[1758788143590,44.12390235,4044.2,4044.1,14.5]
[1758788143795,41.62641507,4044.2,4044.1,14.5]
[1758788144165,4.4832,4044.2,4044.1,14.5]
[1758788144385,3.0,4044.2,4044.1,14.5]
[1758788145596,4.484,4044.2,4044.1,14.5]
[1758788146285,6.95667692,4044.2,4044.1,14.5]
[1758788146480,4.484,4044.2,4044.1,14.5]
[1758788147107,11.32967692,4044.2,4044.1,14.5]
[1758788147486,13.39167692,4044.2,4044.1,14.5]
[1758788147721,3.792,4044.1,4042.9,4.371]